fUST/lending_fUST_20251212
["ID","MTS","AMOUNT","RATE_DAILY","PERIOD"]
[398283883,1765489871580,-500.0,0.00013698,2]
[398283884,1765489871591,-617.23,0.00013698,2]
[398283885,1765489871600,-364.86005031,0.00013698,2]
[398283886,1765489871891,-1445.41,0.00012876,2]
[398283887,1765489871901,-1445.41,0.0001315,2]
[398283888,1765489871912,-135.13994969,0.00013698,2]
[398283889,1765489871922,-500.0,0.00013698,2]
[398283890,1765489871932,-896.71,0.00013698,2]
[398283891,1765489871942,-888.0,0.00013698,2]
[398283892,1765489871952,-500.0,0.00013698,2]
[398283893,1765489871961,-1019.85,0.00013698,2]
[398283894,1765489871971,-151.0,0.00013698,2]
[398283895,1765489871981,-151.0,0.00013698,2]
[398283896,1765489871991,-151.0,0.00013698,2]
[398283897,1765489872000,-5495.15,0.00013698,2]
[398283898,1765489872010,-151.0,0.00013698,2]
[398283899,1765489872020,-7226.62,0.00013698,2]
[398283900,1765489872030,-2033.78,0.00013698,2]
[398283901,1765489872040,-1027.39,0.00013698,2]
[398283902,1765489872050,-500.0,0.00013698,2]
[398283903,1765489872059,-322.924118,0.00013698,2]
[398283904,1765489872068,-322.924118,0.00013698,2]
[398283905,1765489872078,-632.032102,0.00013698,2]
[398283906,1765489872087,-500.0,0.00013698,2]
[398283907,1765489872097,-500.0,0.00013698,2]
[398283908,1765489872106,-322.924118,0.00013698,2]
[398283909,1765489872115,-151.0,0.00013698,2]
[398283910,1765489872124,-500.0,0.00013698,2]
[398283911,1765489872133,-500.0,0.00013698,2]
[398283912,1765489872142,-500.0,0.00013698,2]
[398283913,1765489872152,-632.032102,0.00013698,2]
[398283914,1765489872162,-500.0,0.00013698,2]
[398283915,1765489872172,-500.0,0.00013698,2]
[398283916,1765489872182,-322.924118,0.00013698,2]
[398283917,1765489872191,-500.0,0.00013698,2]
[398283918,1765489872201,-500.0,0.00013698,2]
[398283919,1765489872211,-500.0,0.00013698,2]
[398283920,1765489872220,-588.76842729,0.00013698,2]
[398283921,1765489872231,-525.09405662,0.00013698,2]
[398283922,1765489872332,-1445.41,0.00013424,2]
[398283923,1765489872342,-106.93804538,0.00013698,2]
[398283924,1765489872352,-632.032102,0.00013698,2]
[398283925,1765489872362,-2405.08804334,0.00013698,2]
[398283926,1765489872439,-1483.80832783,0.00013698,2]
[398283927,1765490124939,969.5644,8.219e-05,2]
[398284064,1765491037719,-540.96431006,9.277e-05,2]
[398284066,1765491037731,-186.17545184,9.277e-05,2]
[398284068,1765491037740,-304.42940768,9.277e-05,2]
[398284070,1765491037750,-317.56743233,9.442e-05,2]
[398284072,1765491037763,-727.1397619,0.00010423,2]
[398284074,1765491037772,-258.52965839,0.00010593,2]
[398284076,1765491037781,-1200.0,0.00010855,2]
[398284078,1765491037791,-1200.0,0.00010856,2]
[398284080,1765491037802,-300.0,0.00010856,2]
[398284082,1765491037811,-7693.69868049,0.00010859,2]
[398284084,1765491037821,-500.0,0.00010874,2]
[398284086,1765491037830,-236.61727461,0.00010875,2]
[398284088,1765491037841,-500.0,0.00010875,2]
[398284090,1765491037850,-500.0,0.00010875,2]
[398284092,1765491037859,-500.0,0.00010875,2]
[398284094,1765491037868,-500.0,0.00010875,2]
[398284096,1765491037877,-449.72228896,0.00010875,2]
[398284098,1765491037889,-50.27771104,0.00010875,2]
[398284100,1765491037898,-239.0384944,0.00010875,2]
[398284102,1765491037909,-260.9615056,0.00010875,2]
[398284104,1765491037919,-500.0,0.00010875,2]
[398284105,1765491037928,-349.8244944,0.00010875,2]
[398284106,1765491037939,-150.1755056,0.00010875,2]
[398284107,1765491037949,-500.0,0.00010875,2]
[398284108,1765491037958,-500.0,0.00010875,2]
[398284109,1765491037967,-500.0,0.00010875,2]
[398284110,1765491037976,-500.0,0.00010875,2]
[398284111,1765491037985,-156.587,0.00010952,2]
[398284112,1765491037994,-151.0,0.00010952,2]
[398284113,1765491038004,-263.74,0.00010958,2]
[398284114,1765491038014,-314.28014354,0.00010958,2]
[398284115,1765491038023,-500.0,0.00010958,2]
[398284116,1765491038032,-170.90933335,0.00010958,2]
[398284117,1765491038042,-500.0,0.00010958,2]
[398284118,1765491038051,-387.45740478,0.00010958,2]
[398284119,1765491038061,-500.0,0.00010958,2]
[398284120,1765491038071,-500.0,0.00010958,2]
[398284121,1765491038081,-500.0,0.00010958,2]
[398284122,1765491038090,-500.0,0.00010958,2]
[398284123,1765491038099,-500.0,0.00010958,2]
[398284124,1765491038109,-521.5702599,0.00010958,2]
[398284125,1765491038119,-500.0,0.00010958,2]
[398284126,1765491038128,-500.0,0.00010959,2]
[398284128,1765491038137,-500.0,0.00010959,2]
[398284130,1765491038147,-500.0,0.00010959,2]
[398284132,1765491038157,-500.0,0.00010959,2]
[398284134,1765491038166,-500.0,0.00010959,2]
[398284136,1765491038176,-500.0,0.00010959,2]
[398284138,1765491038190,-500.0,0.00010959,2]
[398284141,1765491038202,-500.0,0.00010959,2]
[398284143,1765491038214,-500.0,0.00010959,2]
[398284145,1765491038227,-500.0,0.00010959,2]
[398284147,1765491038240,-500.0,0.00010959,2]
[398284150,1765491038253,-500.0,0.00010959,2]
[398284152,1765491038265,-500.0,0.00010959,2]
[398284154,1765491038275,-500.0,0.00010959,2]
[398284156,1765491038290,-500.0,0.00010959,2]
[398284158,1765491038302,-500.0,0.00010959,2]
[398284160,1765491038314,-500.0,0.00010959,2]
[398284163,1765491038326,-500.0,0.00010959,2]
[398284165,1765491038337,-500.0,0.00010959,2]
[398284167,1765491038349,-500.0,0.00010959,2]
[398284169,1765491038362,-500.0,0.00010959,2]
[398284172,1765491038374,-500.0,0.00010959,2]
[398284174,1765491038385,-500.0,0.00010959,2]
[398284176,1765491038398,-500.0,0.00010959,2]
[398284178,1765491038410,-500.0,0.00010959,2]
[398284181,1765491038423,-500.0,0.00010959,2]
[398284183,1765491038435,-500.0,0.00010959,2]
[398284185,1765491038447,-500.0,0.00010959,2]
[398284187,1765491038459,-500.0,0.00010959,2]
[398284189,1765491038471,-500.0,0.00010959,2]
[398284191,1765491038482,-500.0,0.00010959,2]
[398284193,1765491038493,-500.0,0.00010959,2]
[398284196,1765491038505,-500.0,0.00010959,2]
[398284198,1765491038516,-500.0,0.00010959,2]
[398284200,1765491038529,-500.0,0.00010959,2]
[398284202,1765491038540,-500.0,0.00010959,2]
[398284204,1765491038551,-500.0,0.00010959,2]
[398284207,1765491038562,-500.0,0.00010959,2]
[398284209,1765491038573,-500.0,0.00010959,2]
[398284211,1765491038583,-500.0,0.00010959,2]
[398284213,1765491038592,-500.0,0.00010959,2]
[398284215,1765491038604,-500.0,0.00010959,2]
[398284217,1765491038615,-500.0,0.00010959,2]
[398284219,1765491038625,-500.0,0.00010959,2]
[398284222,1765491038638,-500.0,0.00010959,2]
[398284224,1765491038650,-500.0,0.00010959,2]
[398284226,1765491038662,-500.0,0.00010959,2]
[398284228,1765491038674,-2932.31890485,0.00010978,2]
[398284230,1765491038686,-11376.68346606,0.00010978,2]
[398284233,1765491038699,-335.0,0.00010978,2]
[398284235,1765491038713,-2773.56790519,0.00010978,2]
[398284237,1765491038725,-574.12855637,0.00010978,2]
[398284239,1765491038738,-151.0,0.00011,2]
[398284242,1765491038751,-151.0,0.00011,2]
[398284244,1765491038769,-151.0,0.00011,2]
[398284246,1765491038780,-168.07,0.0001106,2]
[398284248,1765491038791,-151.0,0.00011062,2]
[398284250,1765491038803,-500.0,0.00011062,2]
[398284252,1765491038814,-562.0,0.00011062,2]
[398284254,1765491038824,-500.0,0.00011062,2]
[398284256,1765491038837,-151.0,0.00011062,2]
[398284259,1765491038851,-500.0,0.00011062,2]
[398284261,1765491038866,-500.0,0.00011062,2]
[398284263,1765491038878,-151.0,0.00011062,2]
[398284265,1765491038890,-228.50658312,0.00011062,2]
[398284267,1765491038901,-151.0,0.00011062,2]
[398284270,1765491038912,-645.0,0.00011062,2]
[398284272,1765491038922,-151.0,0.00011062,2]
[398284274,1765491038933,-151.0,0.00011062,2]
[398284276,1765491038945,-500.0,0.00011062,2]
[398284278,1765491038957,-500.0,0.00011062,2]
[398284280,1765491038969,-500.0,0.00011062,2]
[398284282,1765491038981,-500.0,0.00011062,2]
[398284284,1765491038991,-445.0,0.00011062,2]
[398284286,1765491039003,-500.0,0.00011062,2]
[398284288,1765491039014,-500.0,0.00011062,2]
[398284291,1765491039025,-198.0,0.00011062,2]
[398284293,1765491039036,-151.0,0.00011062,2]
[398284295,1765491039047,-151.0,0.00011062,2]
[398284297,1765491039058,-500.0,0.00011062,2]
[398284299,1765491039069,-151.0,0.00011062,2]
[398284301,1765491039081,-500.0,0.00011062,2]
[398284304,1765491039096,-500.0,0.00011062,2]
[398284306,1765491039107,-151.0,0.00011062,2]
[398284308,1765491039118,-500.0,0.00011062,2]
[398284310,1765491039128,-561.0,0.00011062,2]
[398284312,1765491039140,-500.0,0.00011062,2]
[398284314,1765491039151,-500.0,0.00011062,2]
[398284316,1765491039163,-500.0,0.00011062,2]
[398284318,1765491039174,-155.79370686,0.00011082,2]
[398284321,1765491039185,-300.0,0.00011092,2]
[398284323,1765491039197,-300.0,0.00011092,2]
[398284325,1765491039208,-300.0,0.00011092,2]
[398284327,1765491039219,-300.0,0.00011092,2]
[398284329,1765491039230,-300.0,0.00011092,2]
[398284331,1765491039241,-300.0,0.00011092,2]
[398284333,1765491039252,-300.0,0.00011092,2]
[398284335,1765491039263,-300.0,0.00011092,2]
[398284337,1765491039274,-300.0,0.00011092,2]
[398284340,1765491039285,-300.0,0.00011092,2]
[398284342,1765491039296,-300.0,0.00011092,2]
[398284344,1765491039307,-300.0,0.00011092,2]
[398284346,1765491039317,-300.0,0.00011092,2]
[398284348,1765491039328,-300.0,0.00011092,2]
[398284350,1765491039339,-300.0,0.00011092,2]
[398284352,1765491039350,-600.0,0.00011092,2]
[398284354,1765491039360,-151.55389444,0.00011199,2]
[398284357,1765491039371,-562.0,0.00011199,2]
[398284359,1765491039382,-500.0,0.00011199,2]
[398284361,1765491039393,-151.0,0.00011199,2]
[398284363,1765491039404,-500.0,0.00011199,2]
[398284365,1765491039415,-500.0,0.00011199,2]
[398284367,1765491039426,-500.0,0.00011199,2]
[398284369,1765491039436,-151.0,0.00011199,2]
[398284371,1765491039447,-645.0,0.00011199,2]
[398284374,1765491039458,-151.19917669,0.00011199,2]
[398284376,1765491039469,-151.0,0.00011199,2]
[398284379,1765491039480,-500.0,0.00011199,2]
[398284381,1765491039491,-641.79806461,0.00011199,2]
[398284383,1765491039502,-500.0,0.00011199,2]
[398284385,1765491039514,-501.87413705,0.00011199,2]
[398284387,1765491039526,-445.0,0.00011199,2]
[398284389,1765491039536,-500.0,0.00011199,2]
[398284391,1765491039547,-500.0,0.00011199,2]
[398284394,1765491039558,-151.0,0.00011199,2]
[398284396,1765491039568,-500.0,0.00011199,2]
[398284398,1765491039579,-151.0,0.00011199,2]
[398284399,1765491039590,-500.0,0.00011199,2]
[398284401,1765491039601,-644.05571946,0.00011199,2]
[398284403,1765491039611,-151.0,0.00011199,2]
[398284405,1765491039622,-500.0,0.00011199,2]
[398284408,1765491039633,-561.0,0.00011199,2]
[398284410,1765491039644,-500.0,0.00011199,2]
[398284412,1765491039655,-500.0,0.00011199,2]
[398284414,1765491039666,-500.0,0.00011199,2]
[398284416,1765491039678,-151.0,0.000112,2]
[398284418,1765491039688,-151.0,0.000112,2]
[398284420,1765491039699,-151.0,0.000112,2]
[398284422,1765491039710,-500.0,0.00011233,2]
[398284424,1765491039721,-562.0,0.00011336,2]
[398284426,1765491039731,-500.0,0.00011336,2]
[398284428,1765491039742,-203.75195337,0.00011336,2]
[398284429,1765491039753,-500.0,0.00011336,2]
[398284431,1765491039770,-500.0,0.00011336,2]
[398284433,1765491039781,-500.0,0.00011336,2]
[398284435,1765491039791,-151.0,0.00011336,2]
[398284437,1765491039803,-645.0,0.00011336,2]
[398284438,1765491039813,-151.0,0.00011336,2]
[398284441,1765491039824,-506.63919728,0.00011336,2]
[398284443,1765491039837,-500.0,0.00011336,2]
[398284445,1765491039848,-445.0,0.00011336,2]
[398284447,1765491039859,-500.0,0.00011336,2]
[398284449,1765491039870,-500.0,0.00011336,2]
[398284451,1765491039881,-151.0,0.00011336,2]
[398284453,1765491039892,-500.0,0.00011336,2]
[398284455,1765491039903,-151.0,0.00011336,2]
[398284457,1765491039914,-500.0,0.00011336,2]
[398284459,1765491039925,-300.94685263,0.00011336,2]
[398284461,1765491039935,-305.15246767,0.00011336,2]
[398284463,1765491039946,-561.0,0.00011336,2]
[398284465,1765491039957,-500.0,0.00011336,2]
[398284467,1765491039967,-500.0,0.00011336,2]
[398284468,1765491039978,-500.0,0.00011336,2]
[398284470,1765491039988,-7693.69868048,0.00011338,2]
[398284472,1765491039999,-151.0,0.000114,2]
[398284474,1765491040010,-151.0,0.000114,2]
[398284476,1765491040020,-151.0,0.000114,2]
[398284478,1765491040031,-374.72957015,0.00011442,2]
[398284480,1765491040042,-385.84479966,0.00011463,2]
[398284482,1765491040053,-385.07651329,0.00011463,2]
[398284484,1765491040063,-824.65931539,0.00011463,2]
[398284486,1765491040074,-385.84512558,0.00011463,2]
[398284488,1765491040084,-385.46120428,0.00011463,2]
[398284490,1765491040095,-562.0,0.00011473,2]
[398284492,1765491040105,-500.0,0.00011473,2]
[398284494,1765491040116,-500.0,0.00011473,2]
[398284496,1765491040126,-500.0,0.00011473,2]
[398284498,1765491040137,-500.0,0.00011473,2]
[398284500,1765491040147,-209.6714941,0.00011473,2]
[398284502,1765491040158,-645.0,0.00011473,2]
[398284503,1765491040168,-199.37467131,0.00011473,2]
[398284504,1765491040180,-500.0,0.00011473,2]
[398284505,1765491040191,-445.0,0.00011473,2]
[398284506,1765491040202,-500.0,0.00011473,2]
[398284507,1765491040213,-500.0,0.00011473,2]
[398284508,1765491040223,-198.19237479,0.00011473,2]
[398284509,1765491040234,-217.01387877,0.00011473,2]
[398284510,1765491040244,-151.0,0.00011473,2]
[398284511,1765491040255,-500.0,0.00011473,2]
[398284512,1765491040266,-561.0,0.00011473,2]
[398284514,1765491040277,-500.0,0.00011473,2]
[398284516,1765491040292,-500.0,0.00011473,2]
[398284518,1765491040303,-500.0,0.00011473,2]
[398284520,1765491040314,-151.0,0.000115,2]
[398284522,1765491040325,-500.0,0.00011507,2]
[398284524,1765491040336,-500.0,0.00011507,2]
[398284526,1765491040348,-2876.18991768,0.00011526,2]
[398284528,1765491040359,-595.37131296,0.00011526,2]
[398284530,1765491040370,-727.1397619,0.0001157,2]
[398284533,1765491040381,-304.42940768,0.0001157,2]
[398284535,1765491040392,-151.0,0.000116,2]
[398284537,1765491040404,-151.0,0.000116,2]
[398284539,1765491040415,-151.0,0.000116,2]
[398284541,1765491040427,-562.0,0.0001161,2]
[398284543,1765491040439,-500.0,0.0001161,2]
[398284545,1765491040450,-500.0,0.0001161,2]
[398284546,1765491040462,-500.0,0.0001161,2]
[398284547,1765491040472,-500.0,0.0001161,2]
[398284549,1765491040484,-645.0,0.0001161,2]
[398284551,1765491040495,-500.0,0.0001161,2]
[398284552,1765491040505,-445.0,0.0001161,2]
[398284554,1765491040516,-500.0,0.0001161,2]
[398284556,1765491040527,-500.0,0.0001161,2]
[398284558,1765491040539,-151.0,0.0001161,2]
[398284560,1765491040549,-538.21274117,0.0001161,2]
[398284562,1765491040560,-561.0,0.0001161,2]
[398284564,1765491040571,-500.0,0.0001161,2]
[398284566,1765491040583,-500.0,0.0001161,2]
[398284568,1765491040594,-500.0,0.0001161,2]
[398284570,1765491040605,-500.0,0.00011747,2]
[398284572,1765491040616,-562.0,0.00011747,2]
[398284574,1765491040627,-500.0,0.00011747,2]
[398284576,1765491040638,-392.308308,0.00011747,2]
[398284578,1765491040649,-194.34988413,0.00011747,2]
[398284580,1765491040660,-645.0,0.00011747,2]
[398284582,1765491040671,-500.0,0.00011747,2]
[398284584,1765491040682,-445.0,0.00011747,2]
[398284586,1765491040693,-500.0,0.00011747,2]
[398284588,1765491040703,-500.0,0.00011747,2]
[398284590,1765491040714,-181.8502956,0.00011747,2]
[398284592,1765491040725,-561.0,0.00011747,2]
[398284593,1765491040736,-405.13094007,0.00011747,2]
[398284595,1765491040746,-500.0,0.00011747,2]
[398284597,1765491040758,-500.0,0.00011747,2]
[398284599,1765491040771,-500.0,0.00011781,2]
[398284601,1765491040781,-151.0,0.000118,2]
[398284603,1765491040792,-7693.69868048,0.00011818,2]
[398284605,1765491040803,-824.42650342,0.00011846,2]
[398284607,1765491040815,-562.0,0.00011884,2]
[398284609,1765491040826,-500.0,0.00011884,2]
[398284611,1765491040840,-645.0,0.00011884,2]
[398284613,1765491040851,-384.63922505,0.00011884,2]
[398284615,1765491040861,-445.0,0.00011884,2]
[398284616,1765491040871,-500.0,0.00011884,2]
[398284618,1765491040882,-500.0,0.00011884,2]
[398284619,1765491040893,-561.0,0.00011884,2]
[398284621,1765491040903,-500.0,0.00011884,2]
[398284623,1765491040913,-500.0,0.00011884,2]
[398284624,1765491040924,-151.0,0.000119,2]
[398284625,1765491040934,-151.0,0.000119,2]
[398284626,1765491040944,-824.65931539,0.0001193,2]
[398284627,1765491040952,-1680.0,0.00011931,2]
[398284628,1765491040961,-420.0,0.00011931,2]
[398284629,1765491040970,-1680.0,0.00011941,2]
[398284630,1765491040979,-151.0,0.00012,2]
[398284631,1765491040989,-562900.60528766,0.00012,2]
[398284632,1765491040997,-562.0,0.00012021,2]
[398284633,1765491041005,-500.0,0.00012021,2]
[398284634,1765491041013,-645.0,0.00012021,2]
[398284635,1765491041021,-445.0,0.00012021,2]
[398284636,1765491041030,-500.0,0.00012021,2]
[398284637,1765491041037,-298.60011737,0.00012021,2]
[398284638,1765491041044,-561.0,0.00012021,2]
[398284639,1765491041052,-500.0,0.00012021,2]
[398284640,1765491041060,-500.0,0.00012021,2]
[398284641,1765491041067,-4449.0,0.00012045,2]
[398284642,1765491041075,-151.0,0.00012048,2]
[398284643,1765491041085,-500.0,0.00012055,2]
[398284644,1765491041096,-500.0,0.00012055,2]
[398284645,1765491041106,-2982.60894464,0.00012074,2]
[398284646,1765491041117,-617.40005154,0.00012074,2]
[398284647,1765491041127,-295.30641892,0.00012076,2]
[398284648,1765491041138,-151.0,0.000121,2]
[398284649,1765491041149,-151.0,0.000121,2]
[398284650,1765491041159,-385.84512558,0.00012107,2]
[398284651,1765491041169,-385.46120428,0.00012107,2]
[398284652,1765491041180,-562.0,0.00012158,2]
[398284653,1765491041191,-500.0,0.00012158,2]
[398284654,1765491041202,-645.0,0.00012158,2]
[398284655,1765491041214,-445.0,0.00012158,2]
[398284656,1765491041224,-500.0,0.00012158,2]
[398284657,1765491041235,-561.0,0.00012158,2]
[398284658,1765491041246,-500.0,0.00012158,2]
[398284659,1765491041257,-500.0,0.00012158,2]
[398284660,1765491041267,-151.0,0.000122,2]
[398284661,1765491041278,-720.0,0.00012202,2]
[398284662,1765491041289,-150.337,0.00012222,2]
[398284663,1765491041299,-10000.0,0.00012229,2]
[398284664,1765491041310,-562.0,0.00012295,2]
[398284665,1765491041321,-500.0,0.00012295,2]
[398284666,1765491041331,-645.0,0.00012295,2]
[398284667,1765491041342,-445.0,0.00012295,2]
[398284668,1765491041354,-500.0,0.00012295,2]
[398284669,1765491041364,-561.0,0.00012295,2]
[398284670,1765491041375,-574.39153428,0.00012295,2]
[398284671,1765491041385,-500.0,0.00012295,2]
[398284672,1765491041396,-7693.69868048,0.00012297,2]
[398284673,1765491041406,-151.0,0.000123,2]
[398284674,1765491041416,-151.0,0.000123,2]
[398284675,1765491041835,-500.0,0.00012329,2]
[398284676,1765491041858,-1657.66,0.00012329,2]
[398284677,1765491041880,-824.65931539,0.00012397,2]
[398284678,1765491041890,-1000.0,0.000124,2]
[398284679,1765491041899,-1000.0,0.000124,2]
[398284680,1765491041909,-1000.0,0.000124,2]
[398284681,1765491041918,-1000.0,0.000124,2]
[398284682,1765491041927,-1000.0,0.000124,2]
[398284683,1765491041936,-1000.0,0.000124,2]
[398284684,1765491041955,-1000.0,0.000124,2]
[398284685,1765491041964,-1000.0,0.000124,2]
[398284686,1765491041974,-1000.0,0.000124,2]
[398284687,1765491041983,-1000.0,0.000124,2]
[398284688,1765491041993,-151.0,0.000124,2]
[398284689,1765491042003,-385.84479966,0.00012405,2]
[398284690,1765491042012,-385.07651329,0.00012405,2]
[398284691,1765491042023,-500.0,0.00012432,2]
[398284692,1765491042032,-562.0,0.00012432,2]
[398284693,1765491042041,-645.0,0.00012432,2]
[398284694,1765491042051,-445.0,0.00012432,2]
[398284695,1765491042060,-500.0,0.00012432,2]
[398284696,1765491042069,-561.0,0.00012432,2]
[398284697,1765491042079,-628.63983745,0.00012432,2]
[398284698,1765491042088,-582.802,0.00012484,2]
[398284699,1765491042097,-151.0,0.000125,2]
[398284700,1765491042107,-151.0,0.000125,2]
[398284701,1765491042116,-824.42650342,0.00012566,2]
[398284702,1765491042126,-500.0,0.00012569,2]
[398284703,1765491042135,-562.0,0.00012569,2]
[398284704,1765491042145,-645.0,0.00012569,2]
[398284705,1765491042154,-445.0,0.00012569,2]
[398284706,1765491042163,-500.0,0.00012569,2]
[398284707,1765491042173,-561.0,0.00012569,2]
[398284708,1765491042183,-151.0,0.00012596,2]
[398284709,1765491042192,-151.0,0.000126,2]
[398284710,1765491042202,-500.0,0.00012603,2]
[398284711,1765491042212,-500.0,0.00012603,2]
[398284712,1765491042221,-3092.96547559,0.00012622,2]
[398284713,1765491042232,-640.24385345,0.00012622,2]
[398284714,1765491042244,-151.0,0.000127,2]
[398284715,1765491042254,-151.0,0.000127,2]
[398284716,1765491042264,-504.9924861,0.00012706,2]
[398284717,1765491042274,-562.0,0.00012706,2]
[398284718,1765491042284,-645.0,0.00012706,2]
[398284719,1765491042292,-445.0,0.00012706,2]
[398284720,1765491042303,-500.0,0.00012706,2]
[398284721,1765491042312,-561.0,0.00012706,2]
[398284722,1765491042321,-727.1397619,0.00012716,2]
[398284723,1765491042331,-385.84512558,0.00012751,2]
[398284724,1765491042340,-385.46120428,0.00012751,2]
[398284725,1765491042349,-7693.69868048,0.00012776,2]
[398284726,1765491042359,-151.0,0.000128,2]
[398284727,1765491042368,-562.0,0.00012843,2]
[398284728,1765491042377,-645.0,0.00012843,2]
[398284729,1765491042387,-445.0,0.00012843,2]
[398284730,1765491042396,-500.0,0.00012843,2]
[398284731,1765491042405,-561.0,0.00012843,2]
[398284732,1765491042415,-824.65931539,0.00012864,2]
[398284733,1765491042424,-500.0,0.00012876,2]
[398284734,1765491042434,-500.0,0.00012876,2]
[398284735,1765491042443,-500.0,0.00012876,2]
[398284736,1765491042452,-500.0,0.00012876,2]
[398284737,1765491042462,-428.42343323,0.00012876,2]
[398284738,1765491042472,-500.0,0.00012876,2]
[398284739,1765491042481,-1015.14,0.00012876,2]
[398284740,1765491042491,-1176.87,0.00012876,2]
[398284741,1765491042500,-654.1,0.00012876,2]
[398284742,1765491042509,-500.0,0.00012876,2]
[398284743,1765491042519,-500.0,0.00012876,2]
[398284744,1765491042529,-520.76,0.00012876,2]
[398284745,1765491042539,-500.0,0.00012876,2]
[398284746,1765491042549,-500.0,0.00012876,2]
[398284747,1765491042559,-683.14,0.00012876,2]
[398284748,1765491042568,-500.0,0.00012876,2]
[398284749,1765491042578,-500.0,0.00012876,2]
[398284750,1765491042587,-500.0,0.00012876,2]
[398284751,1765491042596,-500.0,0.00012876,2]
[398284752,1765491042606,-500.0,0.00012876,2]
[398284753,1765491042615,-500.0,0.00012876,2]
[398284754,1765491042625,-500.0,0.00012876,2]
[398284755,1765491042634,-537.79,0.00012876,2]
[398284756,1765491042643,-500.0,0.00012876,2]
[398284757,1765491042653,-500.0,0.00012876,2]
[398284758,1765491042662,-500.0,0.00012876,2]
[398284759,1765491042671,-500.0,0.00012876,2]
[398284760,1765491042680,-500.0,0.00012876,2]
[398284761,1765491042690,-500.0,0.00012876,2]
[398284762,1765491042699,-500.0,0.00012876,2]
[398284763,1765491042709,-500.0,0.00012876,2]
[398284764,1765491042718,-500.0,0.00012876,2]
[398284765,1765491042727,-500.0,0.00012876,2]
[398284766,1765491042737,-500.0,0.00012876,2]
[398284767,1765491042746,-500.0,0.00012876,2]
[398284768,1765491042756,-500.0,0.00012876,2]
[398284769,1765491042771,-500.0,0.00012876,2]
[398284770,1765491042781,-578.67,0.00012876,2]
[398284771,1765491042790,-500.0,0.00012876,2]
[398284772,1765491042801,-150.25869165,0.00012876,2]
[398284773,1765491042810,-500.0,0.00012876,2]
[398284774,1765491042820,-500.16699667,0.00012876,2]
[398284775,1765491042829,-449.61006224,0.00012876,2]
[398284776,1765491042840,-461.95444769,0.00012876,2]
[398284777,1765491042849,-500.0,0.00012876,2]
[398284778,1765491042859,-500.0,0.00012876,2]
[398284779,1765491042868,-587.07,0.00012876,2]
[398284780,1765491042878,-596.96,0.00012876,2]
[398284781,1765491042887,-500.0,0.00012876,2]
[398284782,1765491042896,-500.0,0.00012876,2]
[398284783,1765491042906,-500.0,0.00012876,2]
[398284784,1765491042916,-500.0,0.00012876,2]
[398284785,1765491042925,-500.0,0.00012876,2]
[398284786,1765491042935,-1052.1,0.00012876,2]
[398284787,1765491042945,-500.0,0.00012876,2]
[398284788,1765491042954,-500.0,0.00012876,2]